bitfinex/quotes_ETHUSD_20220311
["timestamp","ask_amount","ask_price","bid_price","bid_amount"]
[1646964839908,0.05604766,2538.7,2537.8,0.00096]
[1646964840104,0.05604766,2538.7,2537.8,0.98498]
[1646964840306,0.98492,2538.7,2537.8,0.98498]
[1646964840504,0.06257853,2538.6,2537.8,0.98498]
[1646964841004,1.96983,2538.8,2538.1,2.03565418]
[1646964841005,0.00358168,2538.4,2538.1,2.03565418]
[1646964841246,0.00358168,2538.4,2538.1,1.0]
[1646964841650,0.06038826,2538.4,2538.1,1.0]
[1646964842048,0.05680658,2538.4,2538.1,1.0]
[1646964842250,0.06038826,2538.4,2538.1,1.0]
[1646964842650,0.06038826,2538.4,2537.7,0.00096]
[1646964842854,0.06038826,2538.4,2537.4,0.00096]
[1646964843050,0.06038826,2538.4,2537.2,0.00096]
[1646964843051,0.25738826,2538.4,2537.2,0.00096]
[1646964843250,0.25738826,2538.4,2536.8,10.15789039]
[1646964843251,0.98526,2538.0,2536.9,0.06770727]
[1646964843453,0.05442739,2537.8,2536.9,0.06674727]
[1646964843651,0.98526,2538.0,2537.6,0.81401158]
[1646964843652,0.06441807,2538.0,2537.6,0.81401158]
[1646964843852,0.00358169,2538.2,2537.7,0.07254136]
[1646964844453,0.06595961,2538.1,2537.6,10.5151965]
[1646964844652,0.00358169,2538.1,2537.6,10.5151965]
[1646964844851,0.00358169,2538.1,2537.6,9.70118492]
[1646964845499,0.197,2538.7,2537.6,9.70118492]
[1646964845500,0.06272088,2538.8,2537.7,0.06793264]
[1646964845697,0.06272088,2538.8,2538.4,0.8473001]
[1646964845901,0.0729383,2539.0,2538.4,0.8473001]
[1646964846098,0.0729383,2539.0,2538.3,9.70118492]
[1646964846504,0.98484,2538.7,2538.3,9.70118492]
[1646964846707,0.05960753,2538.6,2538.3,9.70118492]
[1646964847306,0.05960753,2538.6,2538.4,1.03477009]
[1646964847505,1.04450753,2538.6,2538.4,1.03477009]
[1646964847712,1.04476324,2538.6,2538.4,1.03477009]
[1646964847905,0.9849,2538.6,2538.4,1.03477009]
[1646964848304,0.05853178,2538.8,2538.5,9.70118492]
[1646964848507,8.166e-05,2538.6,2538.5,9.7636398]
[1646964848746,0.06876023,2539.6,2538.8,3.9]
[1646964848949,0.98442,2539.8,2538.9,0.5318986]
[1646964849146,2.84953038,2540.5,2539.0,0.06263346]
[1646964849147,0.06406521,2540.3,2539.0,0.06263346]
[1646964849349,0.06406521,2540.3,2539.1,10.16318492]
[1646964849350,0.06794912,2540.3,2539.1,10.16318492]
[1646964849551,0.06794912,2540.3,2539.7,0.90155291]
[1646964849749,0.06794912,2540.3,2539.1,10.16414492]
[1646964849947,0.98423,2540.0,2539.2,0.07331865]
[1646964850149,0.05714124,2540.6,2539.4,0.06411345]
[1646964850352,0.05714124,2540.6,2539.8,1.96797]
[1646964850549,0.05714124,2540.6,2539.9,10.16318492]
[1646964850750,0.04035807,2540.4,2539.9,9.70118492]
[1646964851051,0.04035807,2540.4,2539.0,39.04813395]
[1646964851052,1.12399964,2539.9,2539.5,0.00096]
[1646964851249,0.06787949,2540.2,2539.1,1.10237943]
[1646964851454,0.06787949,2540.2,2539.1,1.10141943]
[1646964851653,0.06787949,2540.2,2539.0,10.00118492]
[1646964851855,0.00356851,2539.8,2538.8,0.00096]
[1646964852154,0.06982358,2539.6,2538.5,0.00096]
[1646964852354,2.27786376,2539.5,2538.4,9.70118492]
[1646964852598,0.06409257,2539.4,2538.1,0.00096]
[1646964852903,0.05905329,2538.8,2538.1,0.00096]
[1646964853198,0.01868455,2538.6,2537.9,0.00096]
[1646964853396,0.01868455,2538.6,2537.6,0.82596566]
[1646964853397,1.98881125,2538.6,2537.6,0.82596566]
[1646964853597,3.5,2538.5,2537.3,0.00293133]
[1646964853798,0.25,2538.3,2537.3,0.00293133]
[1646964853998,2.95568,2538.2,2537.1,0.00096]
[1646964854197,0.06012665,2538.0,2536.9,0.00096]
[1646964854397,0.06012665,2538.0,2537.3,0.00206445]
[1646964854799,0.90383189,2537.8,2537.3,0.00206445]
[1646964854997,0.05212759,2537.7,2537.3,0.00206445]
[1646964855197,0.05212759,2537.7,2537.0,1.08312204]
[1646964855401,0.05638882,2537.9,2537.0,1.08312204]
[1646964855607,0.05638882,2537.9,2537.0,0.00206465]
[1646964855803,0.98521,2537.7,2537.0,0.00206465]
[1646964856004,0.04730516,2537.6,2537.0,0.00206465]
[1646964856264,0.9852494,2537.5,2537.0,0.00206465]
[1646964856462,0.04921319,2537.4,2536.5,0.0708522]
[1646964856762,0.9853,2537.3,2536.9,0.796]
[1646964858267,1.97014,2537.8,2537.0,0.07553233]
[1646964858463,1.97014,2537.8,2537.0,0.53753233]
[1646964858663,2.02250038,2537.8,2537.1,9.70118492]
[1646964858864,1.97014,2537.8,2537.1,9.70118492]
[1646964859266,0.98501,2537.7,2537.6,0.90761674]
[1646964859867,0.98512,2538.3,2537.6,0.90761674]
[1646964859868,3.40169,2538.8,2537.6,10.60880166]
[1646964860106,0.0532905,2538.7,2537.6,11.07080166]
[1646964860305,0.0532905,2538.7,2537.8,0.0646419]
[1646964860506,1.9695953,2539.0,2537.9,0.462]
[1646964860507,0.05155705,2539.0,2537.9,0.462]
[1646964860710,0.05155705,2539.0,2538.4,0.86864909]
[1646964860908,0.05155705,2539.0,2537.8,0.0646419]
[1646964860909,0.05155705,2539.0,2538.1,0.462]
[1646964861113,1.9694,2538.8,2538.2,8.83703752]
[1646964861810,0.9848395,2538.7,2538.2,8.83703752]
[1646964862013,0.98473,2538.6,2538.2,8.83703752]
[1646964862211,0.05259153,2538.5,2538.1,1.04312739]
[1646964862412,0.05259153,2538.5,2538.0,0.3]
[1646964862413,2.02244153,2538.5,2537.9,0.1968]
[1646964862812,1.96985,2538.5,2537.9,0.53917565]
[1646964863013,1.96985,2538.5,2538.0,0.0814288]
[1646964863214,1.96985,2538.5,2538.0,0.5434288]
[1646964863412,1.96985,2538.5,2538.1,0.0815727]
[1646964863613,2.85185029,2538.5,2538.1,0.0815727]
[1646964863854,0.05861448,2538.4,2538.0,1.0]
[1646964864055,2.02867448,2538.4,2537.5,0.5267795]
[1646964864256,0.04901727,2538.2,2537.3,0.00180175]
[1646964864456,0.25,2538.4,2537.3,0.00180175]
[1646964864457,3.81073442,2538.4,2537.3,0.00180175]
[1646964864658,1.97048,2538.1,2537.3,0.00180175]
[1646964864859,0.89301794,2537.5,2537.2,0.00096]
[1646964865057,1.87836794,2537.5,2537.0,0.00096]
[1646964865256,1.87836794,2537.5,2536.9,0.796]
[1646964865257,1.87836794,2537.5,2537.2,0.0017913]
[1646964865860,0.98535,2537.5,2537.2,0.0017913]
[1646964866161,0.98535,2537.5,2536.9,0.796]
[1646964866958,0.98535,2537.5,2537.1,0.87891575]
[1646964867158,0.98535,2537.5,2537.2,8.83703752]
[1646964868004,0.98535,2537.5,2536.9,0.796]
[1646964868005,1.04443463,2537.4,2536.9,0.796]
[1646964868206,0.05373622,2537.3,2536.7,0.00179169]
[1646964868406,0.9856923,2537.2,2536.7,0.00179169]
[1646964868602,0.05472883,2537.0,2536.6,8.83703752]
[1646964868804,0.05472883,2537.0,2536.6,9.74395528]
[1646964869004,0.05472883,2537.0,2536.6,0.00852178]
[1646964869005,1.04033883,2537.0,2536.6,0.00852178]
[1646964869205,0.04832983,2536.8,2536.6,0.00852178]
[1646964869406,5.87146,2536.7,2535.8,0.00096]
[1646964869605,0.05268282,2536.6,2535.7,1.0]
[1646964869807,0.05268282,2536.6,2535.6,0.00096]
[1646964870007,0.986,2536.3,2535.6,0.00096]
[1646964870206,0.986,2536.3,2535.5,0.007]
[1646964870207,0.9861,2536.1,2535.5,0.007]
[1646964870506,1.04275149,2536.0,2535.5,0.007]
[1646964870706,0.06079187,2535.8,2535.5,0.007]
[1646964870909,3.9444824,2536.1,2535.5,0.007]
[1646964870910,0.9668977,2536.1,2535.5,0.007]
[1646964871108,0.98619,2535.8,2535.5,0.007]
[1646964871352,0.04997239,2535.6,2535.5,0.007]
[1646964871956,0.13819996,2536.4,2535.5,0.007]
[1646964872252,0.98572,2536.3,2535.5,0.007]
[1646964872457,0.04904486,2536.2,2535.5,0.007]
[1646964872656,4.24335486,2536.2,2535.5,0.007]
[1646964872855,0.04883133,2536.0,2535.5,0.007]
[1646964873058,0.197,2535.9,2535.5,0.007]
[1646964873255,0.04906788,2535.8,2535.5,0.007]
[1646964873956,0.98608,2535.9,2535.5,0.007]
[1646964874558,4.08246866,2536.4,2535.5,0.007]
[1646964874559,0.13819996,2536.4,2535.5,0.007]
[1646964874756,2.95767,2536.5,2535.7,0.98567]
[1646964874998,0.06059363,2537.0,2535.8,0.53215925]
[1646964875195,0.06059363,2537.0,2536.0,0.06895942]
[1646964875395,0.06059363,2537.0,2536.1,0.07230775]
[1646964875595,1.23547,2537.0,2535.7,0.00096]
[1646964875795,0.94933022,2536.8,2536.0,0.86552455]
[1646964876002,0.05991724,2536.7,2536.0,0.86552455]
[1646964876208,0.05632441,2536.5,2536.0,0.86552455]
[1646964876799,0.98575,2536.4,2535.6,0.06818398]
[1646964877201,2.02380907,2536.3,2536.0,0.01170093]
[1646964877400,0.05567348,2536.2,2536.0,0.01170093]
[1646964877900,1.04150348,2536.2,2536.0,0.01170093]
[1646964878200,0.04822637,2536.0,2535.5,0.007]
[1646964878402,0.197,2536.7,2535.8,0.01170159]
[1646964878602,2.1683772,2537.0,2535.8,0.01170159]
[1646964878875,6.29489,2537.7,2535.8,0.5494795]
[1646964878876,0.197,2537.3,2535.8,0.5494795]
[1646964879064,0.98552,2537.0,2535.9,8.91746516]
[1646964879262,0.98552,2537.0,2536.9,0.81658947]
[1646964879462,0.05349083,2537.2,2536.9,1.77028947]
[1646964879664,0.3944,2537.9,2536.9,1.77028947]
[1646964879665,0.05474404,2537.6,2536.9,1.77028947]
[1646964879865,0.197,2537.8,2536.9,1.77028947]
[1646964879866,0.05292697,2537.8,2537.0,38.96013395]
[1646964880069,0.00356562,2538.1,2537.0,38.96013395]
[1646964880070,0.06359925,2538.1,2537.1,8.89999487]
[1646964880269,0.06359925,2538.1,2537.2,0.462]
[1646964880467,0.9850735,2538.3,2537.8,1.14746118]
[1646964880669,0.05261617,2538.2,2537.8,1.14746118]
[1646964880871,0.00356704,2538.1,2537.5,0.8304]
[1646964881072,0.00356704,2538.1,2537.5,1.8304]
[1646964881269,0.05321804,2538.0,2537.5,1.8304]
[1646964881472,0.05321804,2538.0,2537.5,0.8304]
[1646964882072,0.05321804,2538.0,2537.9,0.90279269]
[1646964882370,0.9851,2537.8,2537.3,1.98606]
[1646964882595,0.9851,2537.8,2537.6,1.0]
[1646964882998,0.05762463,2537.7,2537.6,1.0]
[1646964883396,0.05762463,2537.7,2537.6,2.14983698]
[1646964885707,0.0567545,2537.7,2537.6,1.0]
[1646964886855,0.0567545,2537.7,2537.1,0.00187364]
[1646964887057,0.98541,2537.6,2537.1,0.00187364]
[1646964887257,4.09842027,2537.5,2537.1,0.00187364]
[1646964887460,1.04733995,2537.3,2537.1,0.00187364]
[1646964887656,3.55656796,2537.2,2536.6,0.00096]
[1646964887855,0.985842,2536.8,2535.9,1.13338615]
[1646964888058,0.25,2536.7,2536.3,1.01556881]
[1646964888358,0.98586,2536.5,2536.3,1.01556881]
[1646964888957,0.98586,2536.5,2535.8,0.00096]
[1646964889159,0.98586,2536.5,2536.0,0.00310804]
[1646964889160,0.06086281,2536.4,2536.0,0.00310804]
[1646964889357,1.04657281,2536.4,2536.0,0.00310804]
[1646964890000,0.05390765,2536.3,2536.2,0.92037703]
[1646964890400,0.98571,2536.4,2536.2,0.92037703]
[1646964892005,0.98554,2536.6,2536.2,0.92037703]
[1646964893208,0.98554,2536.6,2536.3,0.07813921]
[1646964894953,0.98554,2536.6,2536.4,8.83703752]
[1646964896155,0.98547,2537.0,2536.4,8.83703752]
[1646964896356,0.98547,2537.0,2536.4,9.78973752]
[1646964896756,4.4855,2537.6,2536.4,9.78973752]
[1646964896757,0.0528332,2537.5,2536.4,9.78973752]
[1646964896958,0.25187176,2537.9,2536.5,8.91303761]
[1646964897155,0.05487176,2537.9,2536.7,1.0]
[1646964897354,0.447,2538.0,2536.7,0.462]
[1646964897355,1.9704,2537.8,2536.7,0.462]
[1646964897600,0.05694072,2537.7,2536.7,0.46296]
[1646964898015,0.05694072,2537.7,2536.8,0.08161511]
[1646964898202,0.05694072,2537.7,2536.8,1.06678511]
[1646964898400,0.98521,2537.5,2537.2,0.99789327]
[1646964898806,0.98521,2537.5,2537.2,9.83493079]
[1646964899709,0.05642606,2537.4,2537.2,9.83493079]
[1646964901007,0.05642606,2537.4,2537.2,8.83703752]
[1646964901864,0.05642606,2537.4,2536.8,0.00666514]
[1646964901865,0.98544,2537.3,2536.8,0.00666514]
[1646964902068,1.04559692,2537.2,2536.5,0.00096]
[1646964902265,1.04559692,2537.2,2536.9,1.11848867]
[1646964902466,0.05654746,2537.1,2536.9,1.11848867]
[1646964903568,0.98549,2537.1,2536.9,9.95552619]
[1646964904370,0.055189,2537.3,2536.9,9.95552619]
[1646964904572,0.9852967,2537.6,2536.6,1.0]
[1646964904573,2.02472065,2537.5,2536.6,1.0]
[1646964904773,1.97138,2537.3,2536.6,1.0]
[1646964905010,0.04868896,2537.2,2536.5,0.00666592]
[1646964905399,0.25,2537.4,2536.5,0.00666592]
[1646964905400,0.05580156,2537.1,2536.5,0.00666592]
[1646964905600,0.05580156,2537.1,2536.9,0.98455156]
[1646964905601,0.98539,2537.1,2536.9,0.98455156]
[1646964905800,0.98539,2537.1,2536.4,0.53607839]
[1646964906000,0.05861349,2537.0,2536.4,0.462]
[1646964906202,0.98539,2537.1,2536.4,0.462]
[1646964906806,1.9710032,2537.0,2536.7,0.94527201]
[1646964907006,0.05052931,2536.8,2536.2,0.00096]
[1646964907209,0.05052931,2536.8,2536.2,0.00666658]
[1646964907708,0.04921154,2536.8,2536.2,0.00666658]
[1646964907908,0.98562,2536.7,2536.2,0.00666658]
[1646964908110,0.05674455,2536.6,2536.0,1.10131256]
[1646964908308,0.05674455,2536.6,2535.9,0.8672]
[1646964908507,2.02866455,2536.6,2535.9,0.8672]
[1646964908751,0.06073755,2536.5,2535.9,0.8672]
[1646964908952,1.9715639,2536.3,2535.9,0.8672]
[1646964909154,0.41963242,2536.2,2535.9,0.8672]
[1646964909351,0.41963242,2536.1,2535.9,0.8672]
[1646964910354,1.40537242,2536.1,2535.9,0.8672]
[1646964910554,1.40537242,2536.1,2535.9,9.70423752]
[1646964914400,0.41963242,2536.0,2535.9,9.70423752]
[1646964914600,0.83926484,2536.0,2535.9,9.70423752]
[1646964915400,0.83926484,2536.0,2535.9,0.8672]
[1646964915601,0.83926484,2536.0,2535.5,0.007]
[1646964915602,2.9,2535.9,2535.7,0.01137585]
[1646964915805,4.68698544,2536.0,2535.7,0.01137585]
[1646964915806,3.55742897,2535.8,2535.7,0.01137585]
[1646964916004,4.54377897,2535.8,2535.7,0.01137585]
[1646964916272,0.04761994,2535.6,2535.1,0.394]
[1646964916475,0.9516189,2535.2,2535.1,0.394]
[1646964916675,1.01212616,2535.2,2534.5,9.93822015]
[1646964916875,3.55599102,2535.1,2533.9,9.04085461]
[1646964917075,0.9516189,2535.2,2533.9,9.04085461]
[1646964917076,0.30152213,2535.0,2533.9,0.20381709]
[1646964917279,1.04170716,2534.8,2533.9,0.20381709]
[1646964917480,0.05513493,2534.7,2533.8,1.0]
[1646964917679,0.05513493,2534.7,2533.5,7.33]
[1646964917880,0.0615955,2534.4,2533.5,7.33]
[1646964918077,0.3115955,2534.4,2534.1,0.00304048]
[1646964918277,0.05576578,2534.3,2534.1,0.00304048]
[1646964918477,1.04242068,2534.3,2534.1,0.00304048]
[1646964918877,1.97322,2534.2,2533.5,7.792]
[1646964919079,1.9736102,2534.7,2533.3,9.85571737]
[1646964919080,0.05280191,2534.8,2533.7,0.07930298]
[1646964919381,0.05280191,2534.8,2533.9,0.00285826]
[1646964919577,1.03914401,2534.8,2534.2,1.11989588]
[1646964919777,0.41963242,2534.4,2534.0,0.462]
[1646964920015,1.40612242,2534.4,2534.0,0.462]
[1646964920903,1.40612242,2534.4,2534.2,0.95522064]
[1646964921102,2.39260512,2534.4,2534.2,0.95522064]
[1646964921308,1.40612242,2534.4,2534.2,0.95522064]
[1646964923608,2.39243242,2534.5,2534.3,7.4]
[1646964923609,0.41963242,2534.5,2534.3,7.4]
[1646964923850,0.25871521,2535.6,2534.5,3.9]
[1646964924051,0.06161521,2535.6,2534.6,0.462]
[1646964924251,0.98613,2535.1,2534.6,0.462]
[1646964924452,0.98613,2535.1,2534.7,0.89191802]
[1646964924851,0.98613,2535.1,2534.7,1.35391802]
[1646964925455,1.97234,2535.2,2534.7,1.35391802]
[1646964925653,0.05276282,2535.3,2535.1,0.92108134]
[1646964925854,0.98616,2535.4,2535.1,0.92108134]
[1646964926458,0.00355318,2535.7,2535.1,2.05568134]
[1646964926658,0.00355318,2535.7,2535.2,0.462]
[1646964926857,0.00355318,2535.7,2535.3,3.5]
[1646964927058,0.00355318,2535.7,2535.4,0.462]
[1646964927259,0.00355318,2535.7,2535.5,0.06448066]
[1646964927522,0.05412885,2536.7,2535.7,0.98568]
[1646964927710,0.197,2536.9,2535.9,0.06385258]
[1646964927911,0.05740127,2537.0,2536.6,0.2782]
[1646964928113,0.25,2537.2,2536.6,0.9883]
[1646964928311,0.0538029,2537.3,2536.6,0.9883]
[1646964928910,0.00346972,2537.0,2536.6,0.9883]
[1646964929111,0.00346972,2537.0,2536.7,0.98539]
[1646964929313,0.00346972,2537.0,2536.7,2.01726738]
[1646964929713,0.98539,2537.3,2536.8,0.06665808]
[1646964929915,0.98539,2537.3,2537.2,1.03584767]
[1646964931356,1.03988324,2537.3,2537.2,1.03584767]
[1646964931957,0.05449324,2537.3,2537.2,1.03584767]
[1646964932156,0.03843492,2537.6,2537.2,1.03584767]
[1646964932157,1.07670556,2537.6,2537.2,1.03584767]
[1646964932557,0.00359036,2537.4,2537.2,1.03584767]
[1646964933457,0.05319726,2537.5,2537.2,1.03584767]
[1646964933656,0.00346831,2537.4,2537.2,1.03584767]
[1646964934556,0.9853,2537.5,2537.2,1.03584767]
[1646964935012,0.09793111,2537.6,2537.3,3.5]
[1646964935013,0.00357286,2537.4,2537.3,3.5]
[1646964935203,0.00357286,2537.4,2537.3,12.87611937]
[1646964935402,7.286e-05,2537.4,2537.3,49.47974626]
[1646964935804,0.03843492,2537.6,2537.4,0.0645144]
[1646964936003,0.03843492,2537.6,2537.5,1.44683]
[1646964936406,0.03843492,2537.6,2537.5,5.14383]
[1646964936607,1.0,2538.3,2537.6,3.9]
[1646964936808,1.0,2538.3,2537.8,0.06350591]
[1646964937010,0.79222314,2538.3,2537.9,37.06562689]
[1646964937207,0.79222314,2538.3,2538.1,0.07524395]
[1646964937410,0.79222314,2538.3,2538.2,9.29903752]
[1646964937709,0.01382714,2538.5,2538.4,0.94659165]
[1646964937909,0.01382714,2538.5,2538.4,1.40859165]
[1646964938313,0.0598556,2539.5,2538.4,2.32539411]
[1646964938508,0.00360206,2538.6,2538.5,36.48948741]
[1646964938755,0.00360206,2538.6,2538.5,0.00096]
[1646964938955,0.00360206,2538.6,2538.2,8.83703752]
[1646964938956,0.00288,2538.3,2538.2,8.83703752]
[1646964939358,1.96965,2539.1,2538.3,2.0]
[1646964939557,0.05996924,2539.1,2538.3,2.0]
[1646964939857,0.00358888,2538.4,2538.3,2.98297321]
[1646964940056,0.00358888,2538.4,2538.3,0.98393321]
[1646964940256,0.00358888,2538.4,2538.3,0.98297321]
[1646964940456,0.00358888,2538.4,2538.3,1.96770321]
[1646964940655,0.05934482,2539.0,2538.9,0.96673872]
[1646964940861,0.05934482,2539.0,2538.0,0.462]
[1646964940862,3.54772155,2539.0,2538.0,0.462]
[1646964941057,3.54772155,2539.0,2536.9,9.5026]
[1646964941058,0.01266221,2538.6,2536.9,9.5026]
[1646964941257,0.01266221,2538.6,2536.7,5.85624727]
[1646964941258,6.1703279,2538.5,2536.7,5.7837]
[1646964941460,6.1703279,2538.5,2536.8,0.06000339]
[1646964941461,0.98522,2538.2,2536.8,0.06000339]
[1646964941662,0.06407774,2538.0,2536.7,5.36856793]
[1646964941863,0.06407774,2538.0,2537.6,1.05102895]
[1646964942262,0.07225995,2538.1,2537.6,1.05102895]
[1646964942516,0.0674369,2538.4,2537.6,1.05102895]
[1646964942704,0.25,2538.9,2537.7,0.462]
[1646964942906,0.06926607,2538.8,2537.6,3.9]
[1646964943107,0.06208452,2539.0,2537.7,41.90979883]
[1646964943307,3.6968,2539.4,2537.9,0.06705774]
[1646964943308,3.56782577,2539.4,2537.9,0.06705774]
[1646964943509,2.0302362,2538.8,2538.0,0.462]
[1646964943706,0.00360369,2539.1,2538.1,0.05]
[1646964943906,0.00360369,2539.1,2538.1,0.512]
[1646964944307,0.06695572,2539.2,2538.1,0.512]
[1646964944308,0.9847839,2539.2,2538.1,0.512]
[1646964944607,5.1207656,2539.4,2538.1,0.512]
[1646964944608,1.96962,2538.9,2538.1,0.512]
[1646964944809,0.06583785,2538.8,2538.1,0.51296]
[1646964945009,0.06583785,2538.8,2538.1,5.35637194]
[1646964945708,4.5,2539.5,2538.1,5.35637194]
[1646964945709,0.0036043,2539.1,2538.3,0.05652324]
[1646964945912,0.0036043,2539.1,2538.4,32.92542045]
[1646964946113,0.0036043,2539.1,2538.5,98.95176683]
[1646964946362,0.0036043,2539.1,2538.9,0.06539559]
[1646964946557,0.0036043,2539.1,2539.0,0.51199]
[1646964946758,2.03500455,2540.0,2539.9,1.07932381]
[1646964946957,2.03500455,2540.0,2539.9,1.1388]
[1646964946958,1.96873,2540.0,2539.9,1.1388]
[1646964947759,0.394,2540.1,2539.9,1.1388]
[1646964948158,0.394,2540.1,2539.4,1.96842]
[1646964948962,0.98429,2540.0,2539.3,4.84533194]
[1646964949161,0.98429,2540.0,2539.1,0.00096]
[1646964949360,0.33499996,2539.9,2538.9,0.00096]
[1646964949560,0.25,2539.8,2538.3,0.00096]
[1646964950021,0.88009339,2539.2,2538.5,0.98465]
[1646964950213,0.88009339,2539.2,2538.4,0.04999]
[1646964950214,0.88009339,2539.2,2538.6,0.00096]
[1646964950410,0.88009339,2539.2,2538.1,0.00096]
[1646964950610,3.04768542,2539.2,2537.9,0.00096]
[1646964950812,3.6968,2539.1,2537.6,0.00096]
[1646964951013,4.68175,2539.1,2538.5,1.05050593]
[1646964951211,5.66669,2539.1,2537.7,0.05096]
[1646964951418,0.985054,2538.8,2537.7,0.05096]
[1646964951626,3.6968,2538.7,2537.7,0.00096]
[1646964951819,3.6968,2538.7,2537.0,9.9318]
[1646964951820,0.1968,2538.7,2537.2,0.05096]
[1646964952019,0.197,2538.8,2537.2,0.05096]
[1646964952214,0.90499799,2538.4,2537.9,0.81556004]
[1646964952415,0.197,2538.8,2537.9,0.81556004]
[1646964952714,0.98515,2538.5,2537.9,0.81556004]
[1646964953117,0.1968,2538.6,2537.9,0.81556004]
[1646964953317,0.1968,2538.8,2537.9,0.81556004]
[1646964953517,1.06352,2538.7,2538.3,0.96091466]
[1646964953758,0.1968,2538.6,2538.3,0.96091466]
[1646964954059,0.1468,2538.6,2537.4,0.98595]
[1646964954258,3.6468,2538.6,2537.4,1.9199708]
[1646964954459,3.5,2538.6,2537.4,1.97087]
[1646964954658,2.24558,2538.7,2537.4,1.97087]
[1646964955061,2.24558,2538.7,2537.9,0.89726003]
[1646964955260,1.08855731,2538.3,2537.4,0.00096]
[1646964955459,1.08855731,2538.3,2537.1,0.05096]
[1646964955660,2.07376731,2538.3,2537.1,0.05096]
[1646964955862,3.5,2538.2,2537.1,0.05096]
[1646964956063,3.5,2538.2,2537.1,0.05]
[1646964956264,1.02893028,2537.9,2537.4,0.86756752]
[1646964956463,0.9852869,2538.1,2537.4,0.86756752]
[1646964956666,0.98531,2538.0,2537.4,0.86756752]
[1646964957064,0.06353395,2537.9,2537.4,0.86756752]
[1646964957702,1.07491332,2537.9,2537.4,0.86756752]
[1646964957903,1.01137937,2537.9,2537.4,0.86756752]
[1646964958104,0.07164327,2537.8,2536.9,0.00096]
[1646964958305,1.01137937,2537.9,2536.8,4.84437194]
[1646964958505,0.06118061,2537.7,2536.8,4.84533194]
[1646964958706,0.06118061,2537.7,2536.8,0.00096]
[1646964958906,0.06118061,2537.7,2536.6,2.0206]
[1646964959105,0.06118061,2537.7,2536.8,0.00768827]
[1646964960007,0.06118061,2537.7,2536.7,0.9863]
[1646964960208,0.06118061,2537.7,2536.7,0.99398857]
[1646964960610,0.06118061,2537.7,2537.4,0.89676895]
[1646964960812,1.97058,2538.4,2537.4,0.89676895]
[1646964960813,0.197,2538.2,2537.4,24.94377494]
[1646964961017,0.2702114,2538.6,2537.5,0.00096]
[1646964961254,0.197,2539.1,2537.5,0.24393037]
[1646964961458,0.00358725,2539.1,2537.6,0.00096]
[1646964961661,0.00358725,2539.1,2538.5,0.8085256]
[1646964961662,2.95535,2538.8,2538.5,0.8085256]
[1646964961863,0.92474038,2538.1,2538.0,0.89696319]
[1646964962259,0.92474038,2538.1,2537.6,0.25]
[1646964962459,0.92474038,2538.1,2537.5,60.45363288]
[1646964962859,0.92474038,2538.1,2537.3,4.84437194]
[1646964963063,0.92474038,2538.1,2537.2,2.43302]
[1646964963261,0.92474038,2538.1,2537.9,0.85478688]
[1646964963460,0.92474038,2538.1,2537.3,0.00096]
[1646964963659,0.92474038,2538.1,2537.0,0.05096]
[1646964963861,0.92474038,2538.1,2537.0,0.00864782]
[1646964964261,4.42474038,2538.1,2537.0,0.00864782]
[1646964964464,0.86819473,2537.8,2537.3,0.94511696]
[1646964964661,0.92474038,2538.1,2537.3,0.94511696]
[1646964965312,0.92474038,2538.1,2537.4,0.98509]
[1646964965809,0.92474038,2538.1,2537.9,1.06662752]
[1646964967215,0.00358752,2539.1,2538.0,3.9]
[1646964967216,0.98489,2538.9,2538.0,3.9]
[1646964967614,1.97335785,2539.1,2538.0,3.9]
[1646964967815,1.97335785,2539.1,2538.0,0.00096]
[1646964968215,0.98496,2538.9,2538.0,0.00096]
[1646964968414,3.05037874,2538.8,2537.9,1.06662752]
[1646964969265,2.95537,2538.6,2537.9,1.06662752]
[1646964969466,1.97028,2538.6,2537.6,0.00096]
[1646964969668,1.97028,2538.6,2537.4,0.00096]
[1646964970066,2.16728,2538.6,2537.4,0.00096]
[1646964970668,0.85344566,2538.0,2537.4,1.14807164]
[1646964970866,0.85344566,2538.0,2537.4,1.14711164]
[1646964971068,0.9851574,2538.1,2537.4,1.14711164]
[1646964971469,1.97032,2538.4,2537.4,1.14711164]
[1646964971668,0.9851,2538.3,2537.5,4.84437194]
[1646964971871,0.9849944,2538.5,2537.5,4.84533194]
[1646964972071,0.05804054,2538.3,2537.5,5.04233194]
[1646964972273,0.05804054,2538.3,2537.5,0.197]
[1646964972516,0.05804054,2538.3,2537.3,0.00096]
[1646964972704,0.05804054,2538.3,2537.4,0.197]
[1646964972905,0.98519,2538.2,2537.3,0.00096]
[1646964973105,0.98519,2538.2,2537.2,38.49813395]
[1646964973106,0.98522,2537.9,2537.2,38.49813395]
[1646964973307,0.98522,2537.9,2537.6,0.83061169]
[1646964973609,0.07350754,2537.8,2537.6,0.83061169]
[1646964974206,0.07350754,2537.8,2537.2,38.49909395]
[1646964974406,0.07214697,2537.7,2537.2,38.49813395]
[1646964974606,0.84546949,2538.1,2537.2,38.49813395]
[1646964974607,0.07520694,2538.0,2537.2,38.49813395]
[1646964975206,1.06040794,2538.0,2537.2,38.49813395]
[1646964975406,2.03812712,2537.8,2537.2,38.49813395]
[1646964975608,0.05867892,2537.7,2537.2,38.49813395]
[1646964975908,0.05867892,2537.7,2537.3,0.83136878]
[1646964976674,0.07584122,2538.1,2537.3,0.83136878]
[1646964977068,0.26221123,2538.6,2537.3,0.83136878]
[1646964977267,1.625114,2538.5,2537.3,0.83232878]
[1646964977469,0.27237803,2538.4,2537.3,0.83232878]
[1646964977666,0.27237803,2538.4,2538.0,0.86684545]
[1646964977869,0.26030353,2538.6,2538.0,0.86684545]
[1646964978068,0.98503,2538.4,2538.0,0.86684545]
[1646964978269,0.05948014,2538.2,2538.0,0.86684545]
[1646964979072,0.05764532,2538.5,2538.2,3.9]
[1646964979272,0.05409073,2538.9,2538.3,0.462]
[1646964979569,0.05409073,2538.9,2538.3,0.6588]
[1646964979770,0.00320648,2539.1,2538.3,0.6588]
[1646964979771,0.05359641,2539.1,2538.3,0.6588]
[1646964980016,0.05359641,2539.1,2538.3,0.85273037]
[1646964980305,0.05038993,2539.1,2538.4,0.96738648]
[1646964980507,0.05038993,2539.1,2538.5,0.6588]
[1646964980707,0.00320721,2539.1,2538.6,67.46291561]
[1646964980906,0.00320721,2539.1,2538.7,37.1293457]
[1646964981108,0.00320721,2539.1,2538.8,0.06542351]
[1646964981316,0.00320721,2539.1,2538.9,0.6588]